fUSD/lending_fUSD_20250103
["ID","MTS","AMOUNT","RATE_DAILY","PERIOD"]
[347538207,1735908634640,-500.0,8.982e-05,2]
[347538208,1735908634650,-500.0,8.982e-05,2]
[347538209,1735908634659,-500.0,8.982e-05,2]
[347538210,1735908634668,-500.0,8.982e-05,2]
[347538211,1735908634678,-1028.21,8.982e-05,2]
[347538212,1735908634687,-500.0,8.982e-05,2]
[347538213,1735908634697,-500.0,8.982e-05,2]
[347538214,1735908634706,-744.66,8.982e-05,2]
[347538215,1735908634715,-500.0,8.982e-05,2]
[347538216,1735908634725,-500.0,8.982e-05,2]
[347538217,1735908634734,-500.0,8.982e-05,2]
[347538218,1735908634743,-1956.11,8.982e-05,2]
[347538219,1735908634752,-500.0,8.982e-05,2]
[347538220,1735908634762,-613.62,8.982e-05,2]
[347538221,1735908634771,-2278.48,8.982e-05,2]
[347538222,1735908634780,-676.7,8.982e-05,2]
[347538223,1735908634790,-500.0,8.982e-05,2]
[347538224,1735908634799,-500.0,8.982e-05,2]
[347538225,1735908634809,-500.0,8.982e-05,2]
[347538226,1735908634818,-500.0,8.982e-05,2]
[347538227,1735908634827,-557.19,8.982e-05,2]
[347538228,1735908634837,-500.0,8.982e-05,2]
[347538229,1735908634846,-500.0,8.982e-05,2]
[347538230,1735908634855,-500.0,8.982e-05,2]
[347538231,1735908634864,-500.0,8.982e-05,2]
[347538232,1735908634874,-500.0,8.982e-05,2]
[347538233,1735908634883,-500.0,8.982e-05,2]
[347538234,1735908634893,-500.0,8.982e-05,2]
[347538235,1735908634903,-500.0,8.982e-05,2]
[347538236,1735908634912,-500.0,8.982e-05,2]
[347538237,1735908634921,-500.0,8.982e-05,2]
[347538238,1735908634930,-1313.92,8.982e-05,2]
[347538239,1735908634940,-200.16155947,8.982e-05,2]
[347538240,1735908634949,-500.0,8.982e-05,2]
[347538241,1735908634958,-500.0,8.982e-05,2]
[347538242,1735908634968,-511.63,8.982e-05,2]
[347538243,1735908634977,-355.72191975,8.982e-05,2]
[347538246,1735908637972,-829.25,8.981e-05,2]
[347538247,1735908637982,-144.27808025,8.982e-05,2]
[347538248,1735908637991,-798.04,8.982e-05,2]
[347538249,1735908638001,-3198.92,8.982e-05,2]
[347538250,1735908638010,-1067.18,8.982e-05,2]
[347538251,1735908638019,-500.0,8.982e-05,2]
[347538252,1735908638028,-500.0,8.982e-05,2]
[347538253,1735908638037,-515.48,8.982e-05,2]
[347538254,1735908638047,-500.0,8.982e-05,2]
[347538255,1735908638056,-1443.04,8.982e-05,2]
[347538256,1735908638066,-500.0,8.982e-05,2]
[347538257,1735908638075,-500.0,8.982e-05,2]
[347538258,1735908638084,-515.65,8.982e-05,2]
[347538259,1735908638093,-1875.25,8.982e-05,2]
[347538260,1735908638103,-500.0,8.982e-05,2]
[347538261,1735908638113,-500.0,8.982e-05,2]
[347538262,1735908638122,-941.07,8.982e-05,2]
[347538263,1735908638134,-500.0,8.982e-05,2]
[347538264,1735908638144,-2886.5,8.982e-05,2]
[347538265,1735908638155,-500.0,8.982e-05,2]
[347538266,1735908638165,-1122.14,8.982e-05,2]
[347538267,1735908638174,-500.0,8.982e-05,2]
[347538268,1735908638184,-500.0,8.982e-05,2]
[347538269,1735908638193,-6449.48,8.982e-05,2]
[347538270,1735908638203,-500.0,8.982e-05,2]
[347538271,1735908638213,-500.0,8.982e-05,2]
[347538272,1735908638223,-972.67,8.982e-05,2]
[347538273,1735908638233,-629.06,8.982e-05,2]
[347538274,1735908638242,-1882.07,8.982e-05,2]
[347538275,1735908638252,-500.0,8.982e-05,2]
[347538276,1735908638261,-500.0,8.982e-05,2]
[347538277,1735908638271,-892.15,8.982e-05,2]
[347538278,1735908638280,-1183.28,8.982e-05,2]
[347538279,1735908638290,-500.0,8.982e-05,2]
[347538280,1735908638299,-1232.1,8.982e-05,2]
[347538281,1735908638308,-949.14,8.982e-05,2]
[347538282,1735908638318,-500.0,8.982e-05,2]
[347538283,1735908638327,-628.4,8.982e-05,2]
[347538284,1735908638337,-500.0,8.982e-05,2]
[347538285,1735908638346,-1092.35,8.982e-05,2]
[347538286,1735908638356,-500.0,8.982e-05,2]
[347538287,1735908638365,-500.0,8.982e-05,2]
[347538288,1735908638375,-500.0,8.982e-05,2]
[347538289,1735908638384,-500.0,8.982e-05,2]
[347538290,1735908638394,-500.0,8.982e-05,2]
[347538291,1735908638403,-500.0,8.982e-05,2]
[347538292,1735908638414,-500.0,8.982e-05,2]
[347538293,1735908638423,-500.0,8.982e-05,2]
[347538294,1735908638432,-598.71,8.982e-05,2]
[347538295,1735908638441,-500.0,8.982e-05,2]
[347538296,1735908638450,-979.91,8.982e-05,2]
[347538297,1735908638461,-1120.49,8.982e-05,2]
[347538298,1735908638470,-987.39191975,8.982e-05,2]
[347538299,1735908638498,-2989.49808025,8.982e-05,2]
[347538300,1735908638507,-837.61,8.982e-05,2]
[347538301,1735908638516,-500.0,8.982e-05,2]
[347538302,1735908638525,-500.0,8.982e-05,2]
[347538303,1735908638535,-616.8,8.982e-05,2]
[347538304,1735908638544,-500.0,8.982e-05,2]
[347538305,1735908638554,-500.0,8.982e-05,2]
[347538306,1735908638564,-500.0,8.982e-05,2]
[347538307,1735908638573,-500.0,8.982e-05,2]
[347538308,1735908638583,-613.45,8.982e-05,2]
[347538309,1735908638592,-632.54,8.982e-05,2]
[347538310,1735908638603,-1528.66,8.982e-05,2]
[347538311,1735908638612,-500.0,8.982e-05,2]
[347538312,1735908638623,-2334.41,8.982e-05,2]
[347538313,1735908638631,-5655.33,8.982e-05,2]
[347538314,1735908638640,-500.0,8.982e-05,2]
[347538315,1735908638650,-500.0,8.982e-05,2]
[347538316,1735908638659,-1252.71,8.982e-05,2]
[347538317,1735908638668,-500.0,8.982e-05,2]
[347538318,1735908638677,-2412.89,8.982e-05,2]
[347538319,1735908638686,-500.0,8.982e-05,2]
[347538320,1735908638695,-2886.80603654,8.982e-05,2]
[347538321,1735908638736,-892.68396346,8.982e-05,2]
[347538322,1735908638745,-500.0,8.982e-05,2]
[347538323,1735908638754,-500.0,8.982e-05,2]
[347538324,1735908638764,-535.26,8.982e-05,2]
[347538325,1735908638773,-500.0,8.982e-05,2]
[347538326,1735908638782,-500.0,8.982e-05,2]
[347538327,1735908638791,-500.0,8.982e-05,2]
[347538328,1735908638800,-500.0,8.982e-05,2]
[347538329,1735908638809,-500.0,8.982e-05,2]
[347538330,1735908638818,-1029.60263311,8.982e-05,2]
[347538341,1735908640235,-694.19272683,8.982e-05,2]
[347538342,1735908640246,-325.02049997,8.982e-05,2]
[347538343,1735908640257,-534.52499996,8.982e-05,2]
[347538364,1735908643581,-338.58949237,8.881e-05,2]
[347538366,1735908643591,-929.83,8.981e-05,2]
[347538367,1735908643603,-1720.61914013,8.982e-05,2]
[347538368,1735908643612,-500.0,8.982e-05,2]
[347538369,1735908643621,-500.0,8.982e-05,2]
[347538370,1735908643631,-500.0,8.982e-05,2]
[347538371,1735908643641,-500.0,8.982e-05,2]
[347538372,1735908643652,-1586.02,8.982e-05,2]
[347538373,1735908643662,-500.0,8.982e-05,2]
[347538374,1735908643671,-723.51,8.982e-05,2]
[347538375,1735908643680,-500.0,8.982e-05,2]
[347538376,1735908643690,-1400.58,8.982e-05,2]
[347538377,1735908643699,-925.4,8.982e-05,2]
[347538378,1735908643709,-1669.32,8.982e-05,2]
[347538379,1735908643718,-2148.94,8.982e-05,2]
[347538380,1735908643728,-500.0,8.982e-05,2]
[347538381,1735908643738,-500.0,8.982e-05,2]
[347538382,1735908643747,-500.0,8.982e-05,2]
[347538383,1735908643756,-500.0,8.982e-05,2]
[347538384,1735908643765,-500.0,8.982e-05,2]
[347538385,1735908643775,-1935.364896,8.982e-05,2]
[347538386,1735908643785,-500.0,8.982e-05,2]
[347538387,1735908643794,-500.0,8.982e-05,2]
[347538388,1735908643804,-6961.68,8.982e-05,2]
[347538389,1735908643813,-500.0,8.982e-05,2]
[347538390,1735908643822,-500.0,8.982e-05,2]
[347538391,1735908643832,-817.82,8.982e-05,2]
[347538392,1735908643842,-500.0,8.982e-05,2]
[347538393,1735908643852,-500.0,8.982e-05,2]
[347538394,1735908643861,-816.65,8.982e-05,2]
[347538395,1735908643871,-500.0,8.982e-05,2]
[347538396,1735908643881,-500.0,8.982e-05,2]
[347538397,1735908643890,-2338.77,8.982e-05,2]
[347538398,1735908643900,-500.0,8.982e-05,2]
[347538399,1735908643909,-500.0,8.982e-05,2]
[347538400,1735908643918,-500.0,8.982e-05,2]
[347538401,1735908643927,-1906.268819,8.982e-05,2]
[347538402,1735908643937,-5005.04,8.982e-05,2]
[347538403,1735908643947,-500.0,8.982e-05,2]
[347538404,1735908643957,-2621.66,8.982e-05,2]
[347538405,1735908643966,-992.84,8.982e-05,2]
[347538406,1735908643975,-523.18,8.982e-05,2]
[347538407,1735908643985,-500.0,8.982e-05,2]
[347538408,1735908643995,-155.490194,8.982e-05,2]
[347538409,1735908644005,-2273.17,8.982e-05,2]
[347538410,1735908644014,-6468.52,8.982e-05,2]
[347538411,1735908644023,-500.0,8.982e-05,2]
[347538412,1735908644033,-500.0,8.982e-05,2]
[347538413,1735908644042,-787.89,8.982e-05,2]
[347538414,1735908644052,-500.0,8.982e-05,2]
[347538415,1735908644061,-500.0,8.982e-05,2]
[347538416,1735908644071,-825.14,8.982e-05,2]
[347538417,1735908644080,-1709.84,8.982e-05,2]
[347538418,1735908644089,-500.0,8.982e-05,2]
[347538419,1735908644099,-500.0,8.982e-05,2]
[347538420,1735908644107,-500.0,8.982e-05,2]
[347538421,1735908644117,-500.0,8.982e-05,2]
[347538422,1735908644126,-2183.54,8.982e-05,2]
[347538423,1735908644136,-500.0,8.982e-05,2]
[347538424,1735908644145,-500.0,8.982e-05,2]
[347538425,1735908644154,-1181.85,8.982e-05,2]
[347538426,1735908644163,-4067.92,8.982e-05,2]
[347538427,1735908644172,-588.86241579,8.982e-05,2]
[347538428,1735908644181,-500.0,8.983e-05,2]
[347538429,1735908644190,-500.0,8.983e-05,2]
[347538430,1735908644198,-500.0,8.983e-05,2]
[347538431,1735908644208,-500.0,8.983e-05,2]
[347538432,1735908644217,-500.0,8.983e-05,2]
[347538433,1735908644226,-500.0,8.983e-05,2]
[347538434,1735908644235,-500.0,8.983e-05,2]
[347538435,1735908644244,-500.0,8.983e-05,2]
[347538436,1735908644254,-211.83412556,8.983e-05,2]
[347538437,1735908644263,-500.0,8.983e-05,2]
[347538438,1735908644272,-500.0,8.983e-05,2]
[347538439,1735908644281,-500.0,8.983e-05,2]
[347538440,1735908644291,-500.0,8.983e-05,2]
[347538441,1735908644300,-500.0,8.983e-05,2]
[347538442,1735908644310,-2683.03,8.983e-05,2]
[347538443,1735908644319,-500.0,8.983e-05,2]
[347538444,1735908644328,-7277.24,8.983e-05,2]
[347538445,1735908644337,-500.0,8.983e-05,2]
[347538446,1735908644346,-500.0,8.983e-05,2]
[347538447,1735908644355,-539.97638807,8.983e-05,2]
[347538448,1735908644364,-7008.87,8.983e-05,2]
[347538449,1735908644374,-689.8,8.983e-05,2]
[347538450,1735908644384,-500.0,8.983e-05,2]
[347538451,1735908644393,-543.99,8.983e-05,2]
[347538452,1735908644403,-500.0,8.983e-05,2]
[347538453,1735908644416,-500.0,8.983e-05,2]
[347538454,1735908644427,-500.0,8.983e-05,2]
[347538455,1735908644436,-500.0,8.983e-05,2]
[347538456,1735908644446,-500.0,8.983e-05,2]
[347538457,1735908644456,-500.0,8.983e-05,2]
[347538458,1735908644465,-500.0,8.983e-05,2]
[347538459,1735908644475,-3582.71,8.983e-05,2]
[347538460,1735908644487,-275.30733881,8.983e-05,2]
[347538461,1735908644497,-500.0,8.983e-05,2]
[347538462,1735908644506,-594.19950764,8.983e-05,2]
[347538463,1735908644515,-500.0,8.983e-05,2]
[347538464,1735908644525,-500.0,8.983e-05,2]
[347538465,1735908644534,-500.0,8.983e-05,2]
[347538466,1735908644545,-500.0,8.983e-05,2]
[347538467,1735908644555,-626.19,8.983e-05,2]
[347538468,1735908644565,-500.0,8.983e-05,2]
[347538469,1735908644575,-500.0,8.983e-05,2]
[347538470,1735908644584,-500.0,8.983e-05,2]
[347538471,1735908644594,-500.0,8.983e-05,2]
[347538472,1735908644603,-500.0,8.983e-05,2]
[347538473,1735908644612,-829.82,8.983e-05,2]
[347538474,1735908644622,-7421.33,8.983e-05,2]
[347538475,1735908644632,-500.0,8.983e-05,2]
[347538476,1735908644641,-823.09,8.983e-05,2]
[347538477,1735908644652,-500.0,8.983e-05,2]
[347538478,1735908644661,-500.0,8.983e-05,2]
[347538479,1735908644670,-500.0,8.983e-05,2]
[347538480,1735908644680,-500.0,8.983e-05,2]
[347538481,1735908644689,-500.0,8.983e-05,2]
[347538482,1735908644698,-500.0,8.983e-05,2]
[347538483,1735908644708,-500.0,8.983e-05,2]
[347538484,1735908644717,-500.0,8.983e-05,2]
[347538485,1735908644727,-500.0,8.983e-05,2]
[347538486,1735908644736,-500.0,8.983e-05,2]
[347538487,1735908644746,-366.40501145,8.983e-05,2]
[347538488,1735908644755,-500.0,8.983e-05,2]
[347538489,1735908644765,-500.0,8.983e-05,2]
[347538490,1735908644774,-500.0,8.983e-05,2]
[347538491,1735908644783,-500.0,8.983e-05,2]
[347538492,1735908644792,-702.96,8.983e-05,2]
[347538493,1735908644801,-578.29,8.983e-05,2]
[347538494,1735908644810,-500.0,8.983e-05,2]
[347538495,1735908644819,-500.0,8.983e-05,2]
[347538496,1735908644828,-500.0,8.983e-05,2]
[347538497,1735908644838,-500.0,8.983e-05,2]
[347538498,1735908644847,-500.0,8.983e-05,2]
[347538499,1735908644857,-500.0,8.983e-05,2]
[347538500,1735908644866,-500.0,8.983e-05,2]
[347538501,1735908644875,-500.0,8.983e-05,2]
[347538502,1735908644885,-500.0,8.983e-05,2]
[347538503,1735908644894,-500.0,8.983e-05,2]
[347538504,1735908644904,-512.93,8.983e-05,2]
[347538505,1735908644913,-500.0,8.983e-05,2]
[347538506,1735908644923,-500.0,8.983e-05,2]
[347538507,1735908644933,-500.0,8.983e-05,2]
[347538508,1735908644942,-500.0,8.983e-05,2]
[347538509,1735908644952,-500.0,8.983e-05,2]
[347538510,1735908644962,-500.0,8.983e-05,2]
[347538511,1735908644971,-500.0,8.983e-05,2]
[347538512,1735908644980,-500.0,8.983e-05,2]
[347538513,1735908644989,-500.0,8.983e-05,2]
[347538514,1735908644999,-500.0,8.983e-05,2]
[347538515,1735908645008,-816.92,8.983e-05,2]
[347538516,1735908645017,-819.86,8.983e-05,2]
[347538517,1735908645026,-500.0,8.983e-05,2]
[347538518,1735908645036,-500.0,8.983e-05,2]
[347538519,1735908645045,-500.0,8.983e-05,2]
[347538520,1735908645055,-500.0,8.983e-05,2]
[347538521,1735908645064,-500.0,8.983e-05,2]
[347538522,1735908645073,-500.0,8.983e-05,2]
[347538523,1735908645083,-500.0,8.983e-05,2]
[347538524,1735908645092,-500.0,8.983e-05,2]
[347538525,1735908645101,-500.0,8.983e-05,2]
[347538526,1735908645111,-500.0,8.983e-05,2]
[347538527,1735908645120,-500.0,8.983e-05,2]
[347538528,1735908645129,-500.0,8.983e-05,2]
[347538529,1735908645138,-500.0,8.983e-05,2]
[347538530,1735908645147,-500.0,8.983e-05,2]
[347538531,1735908645156,-618.48,8.983e-05,2]
[347538532,1735908645164,-500.0,8.983e-05,2]
[347538533,1735908645173,-500.0,8.983e-05,2]
[347538534,1735908645182,-500.0,8.983e-05,2]
[347538535,1735908645190,-500.0,8.983e-05,2]
[347538536,1735908645199,-500.0,8.983e-05,2]
[347538537,1735908645208,-500.0,8.983e-05,2]
[347538538,1735908645217,-500.0,8.983e-05,2]
[347538539,1735908645226,-500.0,8.983e-05,2]
[347538540,1735908645235,-701.32,8.983e-05,2]
[347538541,1735908645244,-500.0,8.983e-05,2]
[347538542,1735908645253,-500.0,8.983e-05,2]
[347538543,1735908645261,-500.0,8.983e-05,2]
[347538544,1735908645270,-500.0,8.983e-05,2]
[347538545,1735908645280,-609.84,8.983e-05,2]
[347538546,1735908645289,-346.72236272,8.983e-05,2]
[347538547,1735908645298,-500.0,8.983e-05,2]
[347538548,1735908645309,-500.0,8.983e-05,2]
[347538549,1735908645319,-500.0,8.983e-05,2]
[347538550,1735908645328,-500.0,8.983e-05,2]
[347538551,1735908645337,-500.0,8.983e-05,2]
[347538552,1735908645347,-500.0,8.983e-05,2]
[347538553,1735908645356,-500.0,8.983e-05,2]
[347538554,1735908645365,-634.04,8.983e-05,2]
[347538555,1735908645374,-500.0,8.983e-05,2]
[347538556,1735908645384,-998.85,8.983e-05,2]
[347538557,1735908645393,-500.0,8.983e-05,2]
[347538558,1735908645402,-500.0,8.983e-05,2]
[347538559,1735908645413,-500.0,8.983e-05,2]
[347538560,1735908645423,-500.0,8.983e-05,2]
[347538561,1735908645433,-500.0,8.983e-05,2]
[347538562,1735908645442,-554.17,8.983e-05,2]
[347538563,1735908645451,-825.74,8.983e-05,2]
[347538564,1735908645461,-1433.21,8.983e-05,2]
[347538565,1735908645472,-510.02,8.983e-05,2]
[347538566,1735908645481,-500.0,8.983e-05,2]
[347538567,1735908645491,-500.0,8.983e-05,2]
[347538568,1735908645501,-500.0,8.983e-05,2]
[347538569,1735908645510,-500.0,8.983e-05,2]
[347538570,1735908645519,-500.0,8.983e-05,2]
[347538571,1735908645529,-500.0,8.983e-05,2]
[347538572,1735908645538,-916.13,8.983e-05,2]
[347538573,1735908645548,-500.0,8.983e-05,2]
[347538574,1735908645558,-357.54783271,8.983e-05,2]
[347538575,1735908645567,-500.0,8.983e-05,2]
[347538576,1735908645577,-500.0,8.983e-05,2]
[347538577,1735908645586,-500.0,8.983e-05,2]
[347538578,1735908645595,-582.04,8.983e-05,2]
[347538579,1735908645605,-1473.35,8.983e-05,2]
[347538580,1735908645616,-500.0,8.983e-05,2]
[347538581,1735908645626,-500.0,8.983e-05,2]
[347538582,1735908645635,-500.0,8.983e-05,2]
[347538583,1735908645644,-874.57,8.983e-05,2]
[347538584,1735908645654,-625.87,8.983e-05,2]
[347538585,1735908645663,-500.0,8.983e-05,2]
[347538586,1735908645672,-500.0,8.983e-05,2]
[347538587,1735908645681,-615.29,8.983e-05,2]
[347538588,1735908645690,-500.0,8.983e-05,2]
[347538589,1735908645699,-500.0,8.983e-05,2]
[347538590,1735908645708,-909.27,8.983e-05,2]
[347538591,1735908645718,-500.0,8.983e-05,2]
[347538592,1735908645727,-500.0,8.983e-05,2]
[347538593,1735908645737,-508.12,8.983e-05,2]
[347538594,1735908645745,-500.0,8.983e-05,2]
[347538595,1735908645755,-964.76,8.983e-05,2]
[347538596,1735908645764,-500.0,8.983e-05,2]
[347538597,1735908645773,-500.0,8.983e-05,2]
[347538598,1735908645782,-500.0,8.983e-05,2]
[347538599,1735908645792,-500.0,8.983e-05,2]
[347538600,1735908645801,-500.0,8.983e-05,2]
[347538601,1735908645810,-1223.13,8.983e-05,2]
[347538602,1735908645819,-500.0,8.983e-05,2]
[347538603,1735908645829,-500.0,8.983e-05,2]
[347538604,1735908645838,-616.58,8.983e-05,2]
[347538605,1735908645847,-500.0,8.983e-05,2]
[347538606,1735908645856,-2371.66,8.983e-05,2]
[347538607,1735908645866,-581.23,8.983e-05,2]
[347538608,1735908645875,-885.4,8.983e-05,2]
[347538609,1735908645885,-500.0,8.983e-05,2]
[347538610,1735908645894,-500.0,8.983e-05,2]
[347538611,1735908645903,-2310.21,8.983e-05,2]
[347538612,1735908645913,-500.0,8.983e-05,2]
[347538613,1735908645922,-500.0,8.983e-05,2]
[347538615,1735908645932,-500.0,8.983e-05,2]
[347538617,1735908645941,-500.0,8.983e-05,2]
[347538619,1735908645950,-500.0,8.983e-05,2]
[347538621,1735908645960,-500.0,8.983e-05,2]
[347538623,1735908645969,-500.0,8.983e-05,2]
[347538625,1735908645978,-500.0,8.983e-05,2]
[347538627,1735908645987,-500.0,8.983e-05,2]
[347538629,1735908645997,-770.51,8.983e-05,2]
[347538631,1735908646007,-500.0,8.983e-05,2]
[347538632,1735908646016,-1220.39,8.983e-05,2]
[347538633,1735908646025,-876.94,8.983e-05,2]
[347538634,1735908646034,-500.0,8.983e-05,2]
[347538635,1735908646043,-500.0,8.983e-05,2]
[347538636,1735908646053,-846.93,8.983e-05,2]
[347538637,1735908646062,-500.0,8.983e-05,2]
[347538638,1735908646071,-1090.1,8.983e-05,2]
[347538639,1735908646080,-500.0,8.983e-05,2]
[347538640,1735908646089,-1636.32,8.983e-05,2]
[347538641,1735908646098,-500.0,8.983e-05,2]
[347538642,1735908646108,-500.0,8.983e-05,2]
[347538643,1735908646117,-617.89,8.983e-05,2]
[347538644,1735908646126,-649.81,8.983e-05,2]
[347538645,1735908646136,-500.0,8.983e-05,2]
[347538646,1735908646146,-500.0,8.983e-05,2]
[347538647,1735908646156,-2480.64,8.983e-05,2]
[347538648,1735908646165,-542.64,8.983e-05,2]
[347538649,1735908646174,-500.0,8.983e-05,2]
[347538650,1735908646183,-614.63,8.983e-05,2]
[347538651,1735908646192,-500.0,8.983e-05,2]
[347538652,1735908646201,-500.0,8.983e-05,2]
[347538653,1735908646210,-709.86,8.983e-05,2]
[347538654,1735908646219,-500.0,8.983e-05,2]
[347538655,1735908646227,-500.0,8.983e-05,2]
[347538656,1735908646236,-500.0,8.983e-05,2]
[347538657,1735908646245,-500.0,8.983e-05,2]
[347538658,1735908646254,-750.34,8.983e-05,2]
[347538659,1735908646264,-500.0,8.983e-05,2]
[347538660,1735908646273,-1131.76,8.983e-05,2]
[347538661,1735908646282,-500.0,8.983e-05,2]
[347538662,1735908646291,-885.72,8.983e-05,2]
[347538663,1735908646300,-565.8,8.983e-05,2]
[347538664,1735908646309,-783.54,8.983e-05,2]
[347538665,1735908646318,-500.0,8.983e-05,2]
[347538666,1735908646328,-500.0,8.983e-05,2]
[347538667,1735908646338,-500.0,8.983e-05,2]
[347538668,1735908646347,-500.0,8.983e-05,2]
[347538669,1735908646356,-500.0,8.983e-05,2]
[347538670,1735908646365,-720.81,8.983e-05,2]
[347538671,1735908646374,-500.0,8.983e-05,2]
[347538672,1735908646384,-500.0,8.983e-05,2]
[347538673,1735908646393,-500.0,8.983e-05,2]
[347538674,1735908646402,-500.0,8.983e-05,2]
[347538675,1735908646414,-540.65,8.983e-05,2]
[347538677,1735908646423,-570.72,8.983e-05,2]
[347538678,1735908646433,-500.0,8.983e-05,2]
[347538679,1735908646442,-500.0,8.983e-05,2]
[347538680,1735908646453,-500.0,8.983e-05,2]
[347538681,1735908646462,-500.0,8.983e-05,2]
[347538682,1735908646471,-500.0,8.983e-05,2]
[347538683,1735908646482,-500.0,8.983e-05,2]
[347538684,1735908646492,-500.0,8.983e-05,2]
[347538685,1735908646501,-500.0,8.983e-05,2]
[347538686,1735908646511,-789.24,8.983e-05,2]
[347538687,1735908646520,-500.0,8.983e-05,2]
[347538688,1735908646529,-821.49,8.983e-05,2]
[347538689,1735908646539,-500.0,8.983e-05,2]
[347538690,1735908646548,-500.0,8.983e-05,2]
[347538691,1735908646557,-859.89,8.983e-05,2]
[347538692,1735908646567,-2690.85,8.983e-05,2]
[347538693,1735908646577,-594.49,8.983e-05,2]
[347538694,1735908646586,-500.0,8.983e-05,2]
[347538695,1735908646595,-500.0,8.983e-05,2]
[347538696,1735908646605,-500.0,8.983e-05,2]
[347538697,1735908646613,-1762.38,8.983e-05,2]
[347538698,1735908646623,-500.0,8.983e-05,2]
[347538699,1735908646633,-500.0,8.983e-05,2]
[347538700,1735908646642,-500.0,8.983e-05,2]
[347538701,1735908646651,-532.46,8.983e-05,2]
[347538702,1735908646662,-1744.37,8.983e-05,2]
[347538703,1735908646671,-500.0,8.983e-05,2]
[347538704,1735908646681,-692.61,8.983e-05,2]
[347538705,1735908646690,-500.0,8.983e-05,2]
[347538706,1735908646700,-500.0,8.983e-05,2]
[347538707,1735908646709,-500.0,8.983e-05,2]
[347538708,1735908646718,-500.0,8.983e-05,2]
[347538709,1735908646729,-577.64,8.983e-05,2]
[347538710,1735908646738,-500.0,8.983e-05,2]
[347538711,1735908646747,-500.0,8.983e-05,2]
[347538712,1735908646756,-1290.16,8.983e-05,2]
[347538713,1735908646766,-500.0,8.983e-05,2]
[347538714,1735908646776,-500.0,8.983e-05,2]
[347538715,1735908646787,-500.0,8.983e-05,2]
[347538716,1735908646795,-660.26,8.983e-05,2]
[347538717,1735908646805,-753.48,8.983e-05,2]
[347538718,1735908646815,-500.0,8.983e-05,2]
[347538719,1735908646824,-571.3,8.983e-05,2]
[347538720,1735908646834,-8227.65,8.983e-05,2]
[347538721,1735908646844,-500.0,8.983e-05,2]
[347538722,1735908646855,-500.0,8.983e-05,2]
[347538723,1735908646864,-500.0,8.983e-05,2]
[347538724,1735908646873,-1601.95,8.983e-05,2]
[347538725,1735908646884,-905.32,8.983e-05,2]
[347538726,1735908646893,-500.0,8.983e-05,2]
[347538727,1735908646903,-500.0,8.983e-05,2]
[347538728,1735908646912,-1087.32,8.983e-05,2]
[347538729,1735908646922,-500.0,8.983e-05,2]
[347538730,1735908646931,-1649.62,8.983e-05,2]
[347538731,1735908646940,-795.79,8.983e-05,2]
[347538732,1735908646950,-500.0,8.983e-05,2]
[347538733,1735908646959,-500.0,8.983e-05,2]
[347538734,1735908646969,-585.24,8.983e-05,2]
[347538735,1735908646978,-500.0,8.983e-05,2]
[347538736,1735908646987,-966.6,8.983e-05,2]
[347538737,1735908646996,-500.0,8.983e-05,2]
[347538738,1735908647006,-850.2,8.983e-05,2]
[347538739,1735908647015,-500.0,8.983e-05,2]
[347538740,1735908647024,-500.0,8.983e-05,2]
[347538741,1735908647033,-797.68,8.983e-05,2]
[347538742,1735908647042,-500.0,8.983e-05,2]
[347538743,1735908647052,-500.0,8.983e-05,2]
[347538744,1735908647062,-500.0,8.983e-05,2]
[347538745,1735908647071,-500.0,8.983e-05,2]
[347538746,1735908647081,-500.0,8.983e-05,2]
[347538747,1735908647090,-3498.13,8.983e-05,2]
[347538748,1735908647100,-500.0,8.983e-05,2]
[347538749,1735908647109,-762.79,8.983e-05,2]